bitfinex/quotes_SOLUSD_20250929
["timestamp","ask_amount","ask_price","bid_price","bid_amount"]
[1759162025380,26.0,211.12,211.06,4.73798919]
[1759162025791,0.65,211.11,211.06,4.73798919]
[1759162025967,26.0,211.12,211.06,4.73798919]
[1759162025968,34.15,211.1,211.06,4.73798919]
[1759162026290,0.65,211.09,211.06,4.73798919]
[1759162026590,0.65,211.11,211.06,16.58296218]
[1759162026769,33.5,211.1,211.06,16.58296218]
[1759162026972,33.5,211.1,211.03,16.58531961]
[1759162027305,33.5,211.09,211.03,16.58531961]
[1759162027971,131.6,211.11,211.04,3.45726501]
[1759162028177,165.1,211.11,211.08,3.45726501]
[1759162029289,165.1,211.11,211.09,4.73731583]
[1759162029495,0.65,211.1,211.09,4.73731583]
[1759162029785,165.1,211.11,211.09,4.73731583]
[1759162029989,0.65,211.1,211.09,4.73731583]
[1759162030572,165.1,211.11,211.08,11.84361165]
[1759162031173,165.75,211.11,211.08,11.84361165]
[1759162031778,165.75,211.11,211.07,4.73776472]
[1759162031779,0.65,211.1,211.07,4.73776472]
[1759162031981,0.65,211.09,211.07,4.73776472]
[1759162032197,34.17,211.08,211.07,4.73776472]
[1759162032397,33.52,211.08,211.07,4.73776472]
[1759162032885,33.52,211.08,211.05,11.84517682]
[1759162032886,33.52,211.08,211.05,16.58339051]
[1759162034694,0.7,211.07,211.05,16.58339051]
[1759162035483,0.7,211.07,211.02,14.18034676]
[1759162035484,41.99298523,211.06,211.02,3.45726501]
[1759162035684,33.52,211.05,211.02,3.45726501]
[1759162036391,34.22,211.05,211.02,3.45726501]
[1759162036781,33.52,211.05,211.02,3.45726501]
[1759162037607,34.22,211.05,211.03,4.73866274]
[1759162038572,41.99298523,211.04,211.03,4.73866274]
[1759162038890,41.99298523,211.04,210.94,0.3]
[1759162038891,41.99298523,211.04,211.0,4.73933649]
[1759162039067,0.7,211.03,211.0,4.73933649]
[1759162039267,33.52,211.02,211.0,4.73933649]
[1759162039501,33.52,211.02,211.0,16.58767772]
[1759162039803,41.29298523,211.04,211.01,3.45726501]
[1759162040013,15.49563798,211.04,211.03,3.45726501]
[1759162040380,4.73580036,211.16,211.03,3.45726501]
[1759162040381,0.7,211.14,211.03,3.55726501]
[1759162040583,33.52,211.13,211.09,3.45726501]
[1759162040789,0.7,211.12,211.09,3.45726501]
[1759162040989,33.52,211.13,211.09,3.45726501]
[1759162041316,0.71,211.11,211.01,13.59559401]
[1759162041609,0.71,211.11,211.07,3.45726501]
[1759162041808,0.71,211.11,211.08,16.58139093]
[1759162042014,33.52,211.1,211.08,16.58139093]
[1759162043015,34.23,211.1,211.08,16.58139093]
[1759162045829,0.71,211.09,211.08,16.58139093]
[1759162046316,85.26843992,211.01,210.99,4.95646486]
[1759162046523,27.54953514,211.0,210.99,13.69559401]
[1759162046728,36.75569412,211.0,210.99,13.69559401]
[1759162046894,0.71,211.09,210.99,13.69559401]
[1759162047100,70.01557809,211.08,210.99,13.69559401]
[1759162047303,70.01557809,211.07,210.99,13.59559401]
[1759162047621,70.01557809,211.06,211.03,3.45726501]
[1759162048997,34.23,211.07,211.04,4.73843821]
[1759162048998,0.71,211.07,211.04,4.73843821]
[1759162049617,33.52,211.1,211.05,3.45726501]
[1759162049807,0.71,211.1,211.05,3.45726501]
[1759162050009,26.71,211.13,211.09,3.45726501]
[1759162050327,34.23,211.12,211.1,4.73709142]
[1759162051616,33.52,211.12,211.1,4.73709142]
[1759162052325,26.0,211.1,211.09,11.84305413]
[1759162052727,26.0,211.09,211.07,4.73776472]
[1759162053027,34.23,211.09,211.07,4.73776472]
[1759162053233,0.71,211.08,211.07,4.73776472]
[1759162054229,0.71,211.08,211.04,11.8460867]
[1759162054833,70.01557809,211.07,211.04,11.8460867]
[1759162055415,104.24557809,211.06,211.02,4.7388873]
[1759162055730,34.23,211.05,211.02,4.7388873]
[1759162056111,0.71,211.04,211.02,4.7388873]
[1759162056311,0.71,211.03,211.0,4.73933649]
[1759162056511,0.71,211.02,211.0,4.73933649]
[1759162056822,0.71,211.01,211.0,4.73933649]
[1759162057432,59.52,211.02,211.0,4.73933649]
[1759162057942,60.23,211.02,211.0,4.73933649]
[1759162058339,59.52,211.02,210.99,11.84866669]
[1759162058543,0.71,211.01,210.99,11.84866669]
[1759162059038,59.52,211.02,210.99,11.84866669]
[1759162059039,0.71,211.0,210.99,11.84866669]
[1759162059840,0.71,211.0,210.97,4.74001042]
[1759162061143,0.71,210.99,210.97,16.59003649]
[1759162061628,0.71,210.98,210.97,16.59003649]
[1759162062837,0.71,211.0,210.97,11.85002607]
[1759162063146,34.23,210.99,210.97,11.85002607]
[1759162063457,0.71,210.98,210.97,11.85002607]
[1759162063848,33.52,210.99,210.97,11.85002607]
[1759162064047,70.01557809,210.98,210.97,11.85002607]
[1759162064348,34.23,210.99,210.97,11.85002607]
[1759162065358,20.0,211.13,210.97,15.30729108]
[1759162065549,0.71,211.04,210.99,3.45726501]
[1759162065757,34.23,211.03,210.99,3.45726501]
[1759162066059,0.71,211.02,210.99,3.45726501]
[1759162066759,0.71,211.02,211.0,4.73933649]
[1759162067558,26.0,211.0,210.98,4.73958325]
[1759162067740,0.71,210.99,210.98,4.73958325]
[1759162068549,0.71,210.99,210.96,4.74003341]
[1759162068762,0.71,210.98,210.95,4.74045982]
[1759162068955,34.23,210.97,210.95,4.74045982]
[1759162069152,34.23,210.97,210.95,16.59160938]
[1759162070060,33.52,210.97,210.95,16.59160938]
[1759162070265,0.71,210.96,210.95,16.59160938]
[1759162070771,115.00839062,210.95,210.94,0.2]
[1759162072264,115.00839062,210.95,210.94,4.94068455]
[1759162073170,34.17,210.95,210.94,4.94068455]
[1759162074367,39.59559401,210.92,210.89,0.2]
[1759162074664,26.0,210.89,210.88,0.2]
[1759162074872,59.52,210.89,210.88,0.2]
[1759162075053,60.17,210.89,210.88,0.2]
[1759162075365,60.17,210.89,210.88,4.94203338]
[1759162075571,59.52,210.89,210.88,4.94203338]
[1759162075774,33.52,210.9,210.88,16.79711683]
[1759162075976,26.0,210.92,210.89,2.21850806]
[1759162075977,59.52,210.92,210.89,2.21850806]
[1759162076358,59.52,210.92,210.9,4.74158368]
[1759162077758,60.17,210.92,210.9,4.74158368]
[1759162077957,0.65,210.91,210.9,4.74158368]
[1759162079184,26.0,210.89,210.88,0.2]
[1759162079358,60.17,210.89,210.88,0.2]
[1759162079878,31.84877815,211.0,210.88,4.94203338]
[1759162080078,0.65,210.91,210.88,4.94203338]
[1759162080279,26.0,210.93,210.89,0.67]
[1759162080583,26.0,210.93,210.88,19.01562489]
[1759162080584,60.17,210.93,210.88,19.01562489]
[1759162080880,0.65,210.92,210.88,19.01562489]
[1759162081081,0.65,210.91,210.88,19.01562489]
[1759162081674,60.17,210.93,210.88,19.68562489]
[1759162081981,0.65,210.92,210.89,16.59632983]
[1759162082376,59.52,210.93,210.89,16.59632983]
[1759162082774,60.17,210.93,210.89,16.59632983]
[1759162082978,0.65,210.92,210.89,16.59632983]
[1759162083194,0.65,210.91,210.89,16.59632983]
[1759162083691,26.0,210.89,210.88,0.2]
[1759162083863,60.17,210.89,210.88,0.2]
[1759162084063,26.0,210.89,210.88,0.2]
[1759162084272,26.0,210.89,210.88,19.01562489]
[1759162084688,26.0,210.89,210.88,16.79711683]
[1759162085388,26.65,210.89,210.88,16.79711683]
[1759162085975,95.87271438,210.86,210.85,0.2]
[1759162086286,26.0,210.88,210.86,2.21850806]
[1759162086871,132.25,210.87,210.85,16.79947829]
[1759162087077,0.65,210.86,210.85,16.79947829]
[1759162087289,34.17,210.86,210.85,4.94270808]
[1759162088066,33.52,210.86,210.85,4.94270808]
[1759162088466,34.17,210.86,210.85,4.94270808]
[1759162088992,33.52,210.86,210.85,4.94270808]
[1759162089185,33.52,210.88,210.85,19.68798635]
[1759162089492,33.52,210.88,210.87,2.21850806]
[1759162089878,26.0,210.88,210.87,2.21850806]
[1759162090187,26.0,210.88,210.87,6.96076632]
[1759162090574,0.65,210.92,210.87,18.81641197]
[1759162090779,33.54,210.9,210.87,18.81641197]
[1759162091492,34.19,210.9,210.87,18.81641197]
[1759162092191,0.65,210.89,210.87,18.81641197]
[1759162093696,33.54,210.9,210.87,18.81641197]
[1759162093990,0.71,210.89,210.87,18.81641197]
[1759162094778,33.54,210.9,210.85,0.2]
[1759162094779,115.00209609,210.86,210.85,0.2]
[1759162094980,0.71,210.88,210.85,0.2]
[1759162095205,26.0,210.86,210.85,0.2]
[1759162095496,60.25,210.86,210.85,0.2]
[1759162095872,73.84559401,210.86,210.85,0.2]
[1759162096273,73.84559401,210.86,210.85,4.94270808]
[1759162096274,60.25,210.86,210.85,4.94270808]
[1759162100190,73.84559401,210.86,210.85,0.2]
[1759162100688,73.84559401,210.86,210.85,4.94270808]
[1759162100888,73.84559401,210.86,210.85,0.2]
[1759162104114,76.06410207,210.86,210.85,0.2]
[1759162104810,113.8761714,210.78,210.74,1.03878852]
[1759162105007,113.8761714,210.77,210.74,3.25729658]
[1759162105393,113.8761714,210.77,210.74,1.03878852]
[1759162105605,113.8761714,210.77,210.74,0.36878852]
[1759162105921,113.8761714,210.77,210.76,4.94473334]
[1759162106617,33.54,210.78,210.76,17.4765667]
[1759162106822,33.54,210.78,210.76,16.8065667]
[1759162109301,33.54,210.78,210.76,19.02507476]
[1759162109628,26.0,210.81,210.76,19.02507476]
[1759162109822,33.54,210.8,210.76,19.02507476]
[1759162110535,33.54,210.8,210.76,16.8065667]
[1759162110704,0.69,210.79,210.76,16.8065667]
[1759162110895,33.54,210.78,210.76,16.8065667]
[1759162112628,26.0,210.81,210.76,16.8065667]
[1759162112802,33.54,210.8,210.76,16.8065667]
[1759162113828,114.7934333,210.76,210.74,2.21850806]
[1759162114725,114.7934333,210.76,210.75,4.74495848]
[1759162115522,114.7934333,210.76,210.73,37.80866032]
[1759162115523,149.0234333,210.76,210.74,4.74518363]
[1759162115704,148.3334333,210.76,210.74,4.74518363]
[1759162116026,174.3334333,210.76,210.74,4.74518363]
[1759162117314,174.3334333,210.76,210.73,16.60866929]
[1759162119321,174.3334333,210.76,210.74,2.88850806]
[1759162119533,174.3334333,210.76,210.75,4.74495848]
[1759162121528,150.41936854,210.76,210.74,4.74518363]
[1759162122230,99.8681232,210.76,210.74,4.74518363]
[1759162122434,122.4394614,210.76,210.75,0.67]
[1759162122621,28.21850806,210.8,210.75,0.67]
[1759162122622,33.54,210.78,210.75,0.67]
[1759162123022,19.1581733,210.77,210.76,0.67]
[1759162123335,26.69,210.82,210.74,16.60814272]
[1759162123524,26.0,210.8,210.74,17.27814272]
[1759162123725,0.69,210.87,210.75,0.67]
[1759162123925,20.0,210.97,210.85,2.21850806]
[1759162123926,2.21850806,210.97,210.85,2.21850806]
[1759162124131,0.69,210.9,210.85,2.21850806]
[1759162124316,33.54,210.89,210.85,2.21850806]
[1759162124517,26.69,210.9,210.85,2.21850806]
[1759162124518,0.69,210.9,210.85,2.21850806]
[1759162124723,3.72396008,210.98,210.86,0.67]
[1759162125032,13.59559401,210.96,210.86,0.67]
[1759162125235,34.23,210.95,210.86,0.67]
[1759162125613,26.0,210.92,210.87,16.59790391]
[1759162125831,26.0,210.92,210.88,0.67]
[1759162126530,33.54,210.95,210.87,16.59790391]
[1759162126733,2.21850806,210.88,210.87,16.59790391]
[1759162126929,36.44850806,210.88,210.87,4.74225826]
[1759162127235,62.44850806,210.88,210.87,4.74225826]
[1759162127625,26.0,210.85,210.78,23.7213391]
[1759162127823,33.54,210.84,210.78,23.7213391]
[1759162128119,33.54,210.84,210.79,0.67]
[1759162128322,33.54,210.84,210.78,40.32633007]
[1759162128635,0.69,210.83,210.78,40.32633007]
[1759162128814,0.69,210.82,210.78,40.32633007]
[1759162129015,33.54,210.84,210.78,40.32633007]
[1759162129016,34.23,210.84,210.78,40.32633007]
[1759162129827,34.23,210.84,210.78,35.58204694]
[1759162130222,39.70184568,210.84,210.78,35.58204694]
[1759162131634,131.6,210.83,210.78,35.58204694]
[1759162131844,132.27,210.83,210.78,35.58204694]
[1759162132246,131.6,210.83,210.78,35.58204694]
[1759162132427,0.67,210.82,210.78,35.58204694]
[1759162132626,0.67,210.81,210.78,11.86070784]
[1759162132929,0.67,210.8,210.78,11.86070784]
[1759162133126,0.67,210.79,210.78,11.86070784]
[1759162134043,26.0,210.81,210.78,11.86070784]
[1759162134245,0.67,210.89,210.79,0.66]
[1759162134451,8.16614139,210.93,210.79,0.66]
[1759162134661,33.54,210.92,210.81,16.60262795]
[1759162134814,59.54,210.92,210.82,0.66]
[1759162135521,33.54,210.92,210.82,0.66]
[1759162135737,0.67,210.96,210.83,13.59559401]
[1759162136039,33.58,210.95,210.84,0.66]
[1759162136227,33.58,210.95,210.85,13.59559401]
[1759162136414,33.58,210.95,210.86,0.66]
[1759162136615,33.58,210.95,210.87,40.30919522]
[1759162136819,33.58,210.95,210.88,0.66]
[1759162137938,0.67,211.0,210.88,0.66]
[1759162138241,0.67,211.0,210.89,13.59559401]
[1759162138242,33.58,210.99,210.89,13.59559401]
[1759162138444,33.58,210.99,210.9,0.66]
[1759162138639,33.58,210.99,210.91,40.30155041]
[1759162138824,33.58,210.99,210.92,0.66]
[1759162139447,26.0,211.01,210.92,0.66]
[1759162139624,33.58,211.02,210.92,0.66]
[1759162140032,33.58,211.02,210.92,15.17258704]
[1759162140236,33.58,211.02,210.93,0.66]
[1759162140435,0.67,211.03,210.94,13.59559401]
[1759162140631,33.6,211.04,210.94,13.59559401]
[1759162140632,33.6,211.04,210.96,40.29199846]
[1759162140833,33.6,211.04,210.97,0.66]
[1759162141346,34.27,211.04,210.97,0.66]
[1759162142142,33.6,211.04,210.97,0.66]
[1759162142347,0.1,211.05,210.97,0.66]
[1759162142348,26.1,211.05,210.97,0.66]
[1759162142542,0.1,211.05,210.98,8.16614139]
[1759162142733,34.25,211.07,210.99,40.94626948]
[1759162142734,0.67,211.07,210.99,40.94626948]
[1759162143054,0.1,211.09,211.0,34.26]
[1759162143969,0.1,211.09,211.0,33.6]
[1759162144151,0.1,211.09,211.01,22.4217354]
[1759162144650,0.77,211.09,211.02,16.58610557]
[1759162144853,0.77,211.09,211.02,40.28054211]
[1759162145447,0.67,211.08,211.02,40.28054211]
[1759162145642,26.1,211.09,211.02,40.28054211]
[1759162145849,0.67,211.07,211.02,40.28054211]
[1759162146041,0.67,211.06,211.02,40.28054211]
[1759162146437,0.67,211.06,211.02,23.69443654]
[1759162146847,0.67,211.08,211.02,23.69443654]
[1759162147164,0.67,211.07,211.02,23.69443654]
[1759162147553,26.1,211.09,211.02,24.35443654]
[1759162147941,26.77,211.09,211.02,23.69443654]
[1759162148865,0.67,211.08,211.02,23.69443654]
[1759162149049,0.67,211.07,211.01,16.58689161]
[1759162149243,0.67,211.06,211.01,16.58689161]
[1759162149442,0.67,211.05,211.01,16.58689161]
[1759162149766,0.67,211.04,211.01,16.58689161]
[1759162150060,0.67,211.03,211.01,16.58689161]
[1759162150263,0.67,211.06,211.01,16.58689161]
[1759162150468,0.67,211.05,210.97,40.29008863]
[1759162150968,0.67,211.04,210.97,40.29008863]
[1759162151450,131.6,211.03,210.97,40.29008863]
[1759162153071,132.27,211.02,210.97,40.29008863]
[1759162154560,0.68,211.01,210.97,35.55007821]
[1759162155154,0.68,211.0,210.97,35.55007821]
[1759162155476,132.28,210.99,210.97,11.85002607]
[1759162155656,0.68,210.98,210.97,11.85002607]
[1759162156069,131.6,210.99,210.97,11.85002607]
[1759162156375,132.28,210.99,210.97,11.85002607]
[1759162156770,131.6,210.99,210.93,16.59318256]
[1759162156974,132.28,210.99,210.93,16.59318256]
[1759162157169,132.28,210.99,210.93,40.29772909]
[1759162157577,131.6,210.98,210.93,40.29772909]
[1759162157758,0.68,210.97,210.93,40.29772909]
[1759162157958,165.12,210.98,210.93,40.29772909]
[1759162158148,131.6,210.97,210.93,40.29772909]
[1759162159069,131.6,210.97,210.93,40.99772909]
[1759162159472,131.6,210.97,210.93,40.29772909]
[1759162160068,131.6,210.97,210.93,16.59318256]
[1759162160069,0.68,210.96,210.93,16.59318256]
[1759162160286,0.68,210.95,210.93,16.59318256]
[1759162160482,131.6,210.94,210.93,16.59318256]
[1759162160978,131.6,210.94,210.93,11.85227326]
[1759162161777,101.2891634,210.94,210.93,11.85227326]
[1759162162079,74.34952332,210.94,210.93,11.85227326]
[1759162163161,74.34952332,210.94,210.93,16.59318256]
[1759162163570,75.05952332,210.94,210.93,16.59318256]
[1759162163987,74.34952332,210.94,210.93,16.59318256]
[1759162165184,75.05952332,210.94,210.93,16.59318256]
[1759162165481,0.71,211.02,210.93,0.65]
[1759162165683,34.23,211.02,210.93,0.65]
[1759162165885,34.23,211.02,210.94,8.16614139]
[1759162166064,34.23,211.02,210.94,8.81614139]
[1759162166666,131.6,211.03,210.95,0.65]
[1759162166868,0.1,211.09,210.96,47.11559401]
[1759162167072,0.71,211.07,210.97,0.65]
[1759162167257,26.0,211.05,210.97,0.65]
[1759162167463,0.71,211.07,210.98,40.28817896]
[1759162167675,0.71,211.07,210.99,0.65]
[1759162170165,0.71,211.07,211.0,40.28436018]
[1759162172391,0.71,211.07,211.01,0.65]
[1759162172887,0.71,211.07,211.0,35.54502369]
[1759162174176,0.71,211.07,211.0,36.19502369]
[1759162174488,0.71,211.07,211.0,40.93436018]
[1759162175490,131.6,211.06,211.01,0.65]
[1759162175792,0.1,211.09,211.01,0.65]
[1759162176003,0.1,211.09,211.02,33.5]
[1759162176303,131.6,211.13,211.02,33.5]
[1759162176304,0.71,211.15,211.05,26.0]
[1759162176607,0.71,211.15,211.07,40.27100013]
[1759162176968,0.71,211.15,211.08,0.65]
[1759162177492,0.71,211.19,211.08,0.65]
[1759162177669,1e-08,211.14,211.08,0.65]
[1759162178674,1e-08,211.14,211.09,16.58060542]
[1759162178910,1e-08,211.14,211.1,33.52]
[1759162179075,1e-08,211.14,211.1,34.17]
[1759162179274,1e-08,211.14,211.11,0.65]
[1759162179697,1e-08,211.14,211.1,33.52]
[1759162179896,1e-08,211.14,211.11,0.65]
[1759162180307,1e-08,211.14,211.12,0.65]
[1759162180720,1e-08,211.14,211.13,5.38641832]
[1759162183438,1e-08,211.14,211.13,19.67676265]
[1759162184930,1e-08,211.14,211.13,33.27235666]
[1759162185846,0.1,211.23,211.13,33.27235666]
[1759162185847,1e-08,211.23,211.17,13.59559401]
[1759162186138,1e-08,211.23,211.19,13.59559401]
[1759162186931,1e-08,211.23,211.2,16.57196969]
[1759162187833,1e-08,211.23,211.21,33.48]
[1759162188438,1e-08,211.23,211.2,16.57196969]
[1759162188638,1e-08,211.23,211.2,50.05196969]
[1759162193540,0.66000001,211.23,211.2,50.05196969]
[1759162193950,1e-08,211.23,211.2,50.05196969]
[1759162199547,1e-08,211.23,211.2,50.75196969]
[1759162199758,1e-08,211.23,211.2,50.05196969]
[1759162199937,1e-08,211.23,211.22,26.0]
[1759162200248,1e-08,211.23,211.22,59.48]
[1759162200452,1e-08,211.23,211.22,73.77559401]
[1759162201854,1e-08,211.23,211.22,78.50999416]
[1759162202154,0.1,211.3,211.22,78.50999416]
[1759162202155,1e-08,211.3,211.22,114.01799528]
[1759162202452,1e-08,211.3,211.25,13.59559401]
[1759162202652,1e-08,211.3,211.26,33.48]
[1759162203853,1e-08,211.3,211.27,16.5664789]
[1759162204047,1e-08,211.3,211.28,33.46]
[1759162207059,1e-08,211.3,211.29,4.73283165]
[1759162208138,0.1,211.36,211.3,13.59559401]
[1759162208349,0.1,211.36,211.31,38.90699786]
[1759162209067,0.1,211.36,211.32,16.56255914]
[1759162209253,0.66,211.41,211.33,33.46]
[1759162210743,0.2,211.44,211.33,34.16]
[1759162211066,0.2,211.44,211.35,40.21764844]
[1759162211259,0.2,211.44,211.36,33.46]
[1759162211674,0.2,211.44,211.38,13.59559401]
[1759162211891,0.2,211.44,211.39,33.46]
[1759162212363,1e-08,211.44,211.4,6.14699786]
[1759162212547,1e-08,211.44,211.4,5.44699786]
[1759162213158,1e-08,211.44,211.41,16.55550824]
[1759162213356,1e-08,211.44,211.42,33.46]
[1759162214888,1e-08,211.44,211.43,4.72969777]
[1759162217589,0.68000001,211.44,211.43,4.72969777]
[1759162217966,1e-08,211.44,211.43,4.72969777]
[1759162218162,0.68000001,211.44,211.43,4.72969777]
[1759162218984,0.68000001,211.44,211.41,45.26536303]
[1759162219180,0.68,211.43,211.41,11.82536303]
[1759162219485,1e-08,211.44,211.41,11.82536303]
[1759162219486,0.68,211.42,211.41,11.82536303]
[1759162219699,1e-08,211.44,211.41,11.82536303]
[1759162220075,0.68,211.43,211.41,11.82536303]
[1759162221683,0.66,211.42,211.41,11.82536303]
[1759162221883,0.66,211.42,211.4,4.73036896]
[1759162222283,0.66,211.41,211.4,4.73036896]
[1759162222807,0.66,211.41,211.35,11.8283138]
[1759162223003,0.66,211.4,211.35,25.87201982]
[1759162223296,0.66,211.39,211.35,16.55980185]
[1759162224175,0.66,211.42,211.35,16.55980185]
[1759162225100,26.00000001,211.44,211.35,16.55980185]
[1759162225294,0.66,211.43,211.33,33.44]
[1759162225608,0.66,211.42,211.33,33.44]
[1759162226199,0.66,211.41,211.31,40.92526145]
[1759162226506,26.00000001,211.44,211.31,40.92526145]
[1759162226507,0.66,211.4,211.32,33.44]
[1759162227183,0.66,211.4,211.33,16.56177541]
[1759162227979,0.66,211.39,211.33,16.56177541]
[1759162229212,158.26,211.42,211.34,0.7]
[1759162229607,157.6,211.42,211.35,13.59559401]
[1759162229784,157.6,211.42,211.36,0.7]
[1759162230601,131.6,211.42,211.36,0.7]
[1759162230913,131.6,211.42,211.37,40.213843]
[1759162231113,131.6,211.42,211.38,0.7]
[1759162231488,1e-08,211.44,211.41,2.20778835]
[1759162231800,1e-08,211.44,211.43,2.20778835]
[1759162232297,1e-08,211.44,211.43,2.90778835]
[1759162233089,1e-08,211.44,211.43,7.63748612]
[1759162233986,1e-08,211.45,211.43,7.63748612]
[1759162234299,1e-08,211.45,211.44,34.14]
[1759162235012,1e-08,211.45,211.44,38.86947408]
[1759162235885,1e-08,211.45,211.44,52.46506809]
[1759162236804,0.1,211.49,211.45,13.59559401]
[1759162236988,0.1,211.49,211.45,14.29559401]
[1759162237190,0.1,211.49,211.48,2.20778835]
[1759162237507,0.1,211.49,211.48,35.64778835]
[1759162238202,0.1,211.49,211.48,2.20778835]
[1759162238390,0.1,211.49,211.48,35.64778835]
[1759162239112,0.1,211.49,211.48,40.37636788]
[1759162241911,1e-08,211.49,211.48,40.37636788]
[1759162247391,1e-08,211.49,211.48,40.35636788]
[1759162247903,0.66000001,211.49,211.48,40.35636788]
[1759162248112,1e-08,211.49,211.48,40.35636788]
[1759162249519,25.26000001,211.54,211.48,52.88781671]
[1759162249718,25.26000001,211.54,211.53,2.20778835]
[1759162250405,34.24,211.62,211.53,2.20778835]
[1759162250600,3.173384,211.61,211.56,2.20778835]
[1759162251525,26.71,211.57,211.56,2.20778835]
[1759162252205,26.71,211.57,211.55,4.72692549]
[1759162252522,0.71,211.56,211.52,16.64937377]
[1759162252715,0.71,211.55,211.52,4.72767269]
[1759162252913,0.71,211.54,211.5,2.20778835]
[1759162253127,0.71,211.53,211.5,2.20778835]
[1759162253300,0.71,211.52,211.5,2.20778835]
[1759162253511,26.0,211.57,211.51,6.93569719]
[1759162254103,26.71,211.56,211.51,6.93569719]
[1759162254303,0.71,211.55,211.51,8.17529319]
[1759162254503,0.71,211.54,211.51,8.17529319]
[1759162254808,0.71,211.53,211.51,8.17529319]
[1759162255011,0.71,211.52,211.51,8.17529319]
[1759162255212,0.71,211.52,211.51,4.72790884]
[1759162255624,0.71,211.52,211.5,4.72813238]
[1759162255801,26.0,211.56,211.5,4.72813238]
[1759162256002,0.71,211.56,211.5,4.72813238]
[1759162256211,0.71,211.55,211.45,12.52278181]
[1759162256528,26.0,211.52,211.46,38.14902676]
[1759162256722,0.71,211.51,211.46,52.69134601]
[1759162256923,0.71,211.5,211.46,52.69134601]
[1759162257427,0.71,211.5,211.47,3.44738435]
[1759162257925,0.71,211.5,211.48,4.72857953]
[1759162258316,26.0,211.52,211.48,16.55002836]
[1759162258623,0.71,211.55,211.49,4.14738435]
[1759162258833,0.71,211.54,211.46,4.72898485]
[1759162259119,26.71,211.53,211.46,16.55155176]
[1759162259322,26.71,211.53,211.46,17.25155176]
[1759162259507,0.71,211.52,211.46,4.72898485]
[1759162259704,0.71,211.51,211.44,4.72947408]
[1759162259904,0.71,211.51,211.32,14.22576286]
[1759162259905,26.0,211.47,211.36,4.14738435]
[1759162260124,47.72559401,211.5,211.35,4.73148805]
[1759162260125,26.0,211.43,211.37,0.7]
[1759162260317,26.0,211.43,211.38,3.44738435]
[1759162260520,26.71,211.43,211.38,0.7]
[1759162260724,0.71,211.42,211.38,0.7]
[1759162261120,0.71,211.42,211.37,3.44738435]
[1759162261320,0.71,211.42,211.37,18.1073015]
[1759162261519,0.71,211.41,211.38,4.73081653]
[1759162261722,26.71,211.43,211.38,4.73081653]
[1759162261926,26.71,211.43,211.38,5.43081653]
[1759162262111,0.71,211.42,211.38,5.43081653]
[1759162262634,0.71,211.42,211.38,4.73081653]
[1759162263105,0.71,211.42,211.38,5.43081653]
[1759162263728,0.71,211.42,211.38,17.25785787]
[1759162265129,0.71,211.42,211.38,4.73081653]
[1759162265830,26.0,211.43,211.38,4.73081653]
[1759162266130,0.71,211.42,211.38,5.43081653]
[1759162266320,26.0,211.43,211.38,5.43081653]
[1759162266521,0.71,211.42,211.38,5.43081653]
[1759162266709,0.71,211.42,211.38,4.73081653]
[1759162266905,26.0,211.43,211.38,4.73081653]
[1759162267138,0.71,211.42,211.38,4.73081653]
[1759162267531,26.0,211.43,211.38,5.43081653]
[1759162267716,26.71,211.43,211.38,5.43081653]
[1759162268529,0.71,211.42,211.38,5.43081653]
[1759162270236,131.6,211.41,211.38,5.43081653]